[Event "*** Titled Tuesday Blitz"]
[Site "Chess.com"]
[Date "2021.03.16"]
[Round "11"]
[White "juli2512"]
[Black "SergeyShtyka"]
[Result "1/2-1/2"]
[WhiteElo "2231"]
[BlackElo "2411"]
[TimeControl "180+1"]
[EndTime "12:05:11 PDT"]
[Termination "Game drawn by repetition"]

1. e4 {[%clk 0:02:54.8]} 1... c5 {[%clk 0:02:59.3]} 2. d3 {[%clk 0:02:53.7]}
2... g6 {[%clk 0:02:57.4]} 3. Nc3 {[%clk 0:02:54]} 3... Bg7 {[%clk 0:02:57.3]}
4. g3 {[%clk 0:02:54.6]} 4... Nc6 {[%clk 0:02:56.9]} 5. Bg2 {[%clk 0:02:55]}
5... e6 {[%clk 0:02:54.8]} 6. f4 {[%clk 0:02:55.4]} 6... Nge7 {[%clk 0:02:55]}
7. Nf3 {[%clk 0:02:55.5]} 7... O-O {[%clk 0:02:55]} 8. O-O {[%clk 0:02:55.2]}
8... Rb8 {[%clk 0:02:54.1]} 9. Be3 {[%clk 0:02:50.2]} 9... d6 {[%clk 0:02:53.8]}
10. Qd2 {[%clk 0:02:43.7]} 10... b5 {[%clk 0:02:51.7]} 11. Nd1 {[%clk
0:02:43.8]} 11... b4 {[%clk 0:02:48.5]} 12. a3 {[%clk 0:02:42.8]} 12... a5
{[%clk 0:02:48.2]} 13. axb4 {[%clk 0:02:42.3]} 13... axb4 {[%clk 0:02:48.6]} 14.
Rb1 {[%clk 0:02:41.5]} 14... Bb7 {[%clk 0:02:47.5]} 15. Nf2 {[%clk 0:02:40.5]}
15... Ra8 {[%clk 0:02:46.3]} 16. g4 {[%clk 0:02:40.2]} 16... f5 {[%clk
0:02:44.4]} 17. Ng5 {[%clk 0:02:35.1]} 17... Qd7 {[%clk 0:02:40.9]} 18. gxf5
{[%clk 0:02:34.5]} 18... gxf5 {[%clk 0:02:38.1]} 19. Qe2 {[%clk 0:02:28.1]}
19... h6 {[%clk 0:02:37.2]} 20. Nf3 {[%clk 0:02:27.3]} 20... fxe4 {[%clk
0:02:32.4]} 21. dxe4 {[%clk 0:02:27]} 21... Ba6 {[%clk 0:02:32.5]} 22. Qd2
{[%clk 0:02:14.5]} 22... Bxf1 {[%clk 0:02:31]} 23. Bxf1 {[%clk 0:02:14.4]} 23...
Ra2 {[%clk 0:02:27.5]} 24. f5 {[%clk 0:01:51.4]} 24... Rxb2 {[%clk 0:02:20.3]}
25. Rxb2 {[%clk 0:01:45.7]} 25... Bxb2 {[%clk 0:02:19.3]} 26. Bxh6 {[%clk
0:01:46.2]} 26... exf5 {[%clk 0:01:23.2]} 27. Qg5+ {[%clk 0:01:34.7]} 27... Kf7
{[%clk 0:01:22.7]} 28. Bxf8 {[%clk 0:01:29.7]} 28... Kxf8 {[%clk 0:01:21.7]} 29.
Qh6+ {[%clk 0:01:15]} 29... Bg7 {[%clk 0:01:19.3]} 30. Qh3 {[%clk 0:01:10.7]}
30... Ne5 {[%clk 0:01:07.3]} 31. Nxe5 {[%clk 0:01:01.1]} 31... dxe5 {[%clk
0:01:03.2]} 32. Bc4 {[%clk 0:00:52.5]} 32... Qd4 {[%clk 0:00:57]} 33. Be6 {[%clk
0:00:46]} 33... fxe4 {[%clk 0:00:50.4]} 34. Qh5 {[%clk 0:00:44.8]} 34... Ng6
{[%clk 0:00:21.5]} 35. Qxg6 {[%clk 0:00:42.5]} 35... Ke7 {[%clk 0:00:18.4]} 36.
Qf7+ {[%clk 0:00:36.9]} 36... Kd8 {[%clk 0:00:18.6]} 37. Qxg7 {[%clk 0:00:34.2]}
37... e3 {[%clk 0:00:18.7]} 38. Qf8+ {[%clk 0:00:26.4]} 38... Kc7 {[%clk
0:00:18.9]} 39. Qc8+ {[%clk 0:00:23.6]} 39... Kb6 {[%clk 0:00:19.3]} 40. Qb8+
{[%clk 0:00:21.5]} 40... Ka5 {[%clk 0:00:14.4]} 41. Qa7+ {[%clk 0:00:18]} 41...
Kb5 {[%clk 0:00:14.8]} 42. Qb7+ {[%clk 0:00:13.9]} 42... Ka5 {[%clk 0:00:13.8]}
43. Qa7+ {[%clk 0:00:10.2]} 43... Kb5 {[%clk 0:00:14]} 44. Qb7+ {[%clk
0:00:10.5]} 44... Ka5 {[%clk 0:00:14.2]} 45. Qa7+ {[%clk 0:00:10.6]} 1/2-1/2

[Event "*** Titled Tuesday Blitz"]
[Site "Chess.com"]
[Date "2021.03.16"]
[Round "11"]
[White "Maddie"]
[Black "abeljusto"]
[Result "0-1"]
[WhiteElo "2053"]
[BlackElo "2165"]
[TimeControl "180+1"]
[EndTime "12:05:16 PDT"]
[Termination "abeljusto won on time"]

1. d4 {[%clk 0:03:00.9]} 1... Nf6 {[%clk 0:03:00.9]} 2. Nf3 {[%clk 0:03:00.5]}
2... g6 {[%clk 0:02:59.2]} 3. c4 {[%clk 0:02:59.9]} 3... c5 {[%clk 0:02:58.1]}
4. d5 {[%clk 0:02:55.5]} 4... b5 {[%clk 0:02:57.9]} 5. Bf4 {[%clk 0:02:47.3]}
5... d6 {[%clk 0:02:49]} 6. cxb5 {[%clk 0:02:34.1]} 6... Bg7 {[%clk 0:02:45.8]}
7. Nc3 {[%clk 0:02:32.3]} 7... O-O {[%clk 0:02:28.4]} 8. e4 {[%clk 0:02:22.5]}
8... a6 {[%clk 0:02:26.7]} 9. bxa6 {[%clk 0:02:21.3]} 9... Qa5 {[%clk
0:02:23.9]} 10. Qc2 {[%clk 0:02:14.4]} 10... Bxa6 {[%clk 0:02:21.8]} 11. Bxa6
{[%clk 0:02:13.5]} 11... Qxa6 {[%clk 0:02:22.5]} 12. Qe2 {[%clk 0:02:08.7]}
12... Qxe2+ {[%clk 0:02:20.4]} 13. Kxe2 {[%clk 0:02:06.2]} 13... Nbd7 {[%clk
0:02:16.8]} 14. Nd2 {[%clk 0:01:43.8]} 14... Rfb8 {[%clk 0:02:13.1]} 15. Rab1
{[%clk 0:01:31.4]} 15... Nh5 {[%clk 0:02:03.5]} 16. Be3 {[%clk 0:01:27.2]} 16...
Bxc3 {[%clk 0:02:00.5]} 17. bxc3 {[%clk 0:01:25.3]} 17... Rxa2 {[%clk
0:01:59.1]} 18. Rxb8+ {[%clk 0:01:23.7]} 18... Nxb8 {[%clk 0:01:58.8]} 19. Rb1
{[%clk 0:01:21.2]} 19... Ra8 {[%clk 0:01:52]} 20. Bh6 {[%clk 0:01:16.7]} 20...
Nf6 {[%clk 0:01:45.9]} 21. Rb7 {[%clk 0:01:14.1]} 21... Nfd7 {[%clk 0:01:41.3]}
22. Nc4 {[%clk 0:00:57.8]} 22... f6 {[%clk 0:01:40.9]} 23. Bd2 {[%clk
0:00:49.6]} 23... Kf7 {[%clk 0:01:36.2]} 24. f4 {[%clk 0:00:41.7]} 24... Ke8
{[%clk 0:01:24.9]} 25. g4 {[%clk 0:00:38.6]} 25... Kd8 {[%clk 0:01:24.2]} 26. h4
{[%clk 0:00:38.1]} 26... Kc8 {[%clk 0:01:24.3]} 27. Rb2 {[%clk 0:00:37.1]} 27...
Ra1 {[%clk 0:01:18.1]} 28. f5 {[%clk 0:00:24.1]} 28... Rh1 {[%clk 0:01:15.7]}
29. Be1 {[%clk 0:00:19.9]} 29... Kc7 {[%clk 0:00:42.7]} 30. Bf2 {[%clk
0:00:18.2]} 30... Ra1 {[%clk 0:00:20.6]} 31. g5 {[%clk 0:00:14.4]} 31... gxf5
{[%clk 0:00:18.6]} 32. exf5 {[%clk 0:00:13.8]} 32... Ne5 {[%clk 0:00:14.7]} 33.
Nxe5 {[%clk 0:00:12.7]} 33... fxe5 {[%clk 0:00:15.1]} 34. f6 {[%clk 0:00:10.4]}
34... exf6 {[%clk 0:00:12.7]} 35. gxf6 {[%clk 0:00:11.3]} 35... Nd7 {[%clk
0:00:13.1]} 36. f7 {[%clk 0:00:10.3]} 36... Ra8 {[%clk 0:00:13.6]} 37. Ke3
{[%clk 0:00:02.2]} 37... Rf8 {[%clk 0:00:14]} 38. c4 {[%clk 0:00:02.6]} 38...
Rxf7 {[%clk 0:00:14.1]} 39. Ra2 {[%clk 0:00:02.5]} 39... Kb7 {[%clk 0:00:12.7]}
40. Rb2+ {[%clk 0:00:02.2]} 40... Nb6 {[%clk 0:00:12.7]} 41. Rb5 {[%clk
0:00:03.1]} 41... Ka6 {[%clk 0:00:11.9]} 42. Be1 {[%clk 0:00:03.7]} 42... Nxc4+
{[%clk 0:00:11.5]} 43. Kd3 {[%clk 0:00:04.1]} 43... Kxb5 {[%clk 0:00:12]} 0-1

[Event "*** Titled Tuesday Blitz"]
[Site "Chess.com"]
[Date "2021.03.16"]
[Round "11"]
[White "korbul"]
[Black "GMJustin"]
[Result "1/2-1/2"]
[WhiteElo "2568"]
[BlackElo "2329"]
[TimeControl "180+1"]
[EndTime "12:05:19 PDT"]
[Termination "Game drawn by repetition"]

1. d4 {[%clk 0:03:00.9]} 1... Nf6 {[%clk 0:02:58.9]} 2. Nf3 {[%clk 0:03:00.1]}
2... b5 {[%clk 0:02:56.8]} 3. Bf4 {[%clk 0:02:59.1]} 3... Bb7 {[%clk 0:02:56.2]}
4. e3 {[%clk 0:02:59.2]} 4... a6 {[%clk 0:02:56]} 5. Nbd2 {[%clk 0:02:55.9]}
5... e6 {[%clk 0:02:54.1]} 6. Bd3 {[%clk 0:02:54.9]} 6... d6 {[%clk 0:02:52.4]}
7. h3 {[%clk 0:02:54.3]} 7... Nbd7 {[%clk 0:02:52.1]} 8. Bh2 {[%clk 0:02:53.1]}
8... Be7 {[%clk 0:02:51.8]} 9. O-O {[%clk 0:02:52.4]} 9... O-O {[%clk
0:02:51.5]} 10. c3 {[%clk 0:02:52.7]} 10... c5 {[%clk 0:02:47.9]} 11. a4 {[%clk
0:02:51.6]} 11... Qb6 {[%clk 0:02:43.7]} 12. Qe2 {[%clk 0:02:49.9]} 12... c4
{[%clk 0:02:40.9]} 13. Bc2 {[%clk 0:02:49.1]} 13... d5 {[%clk 0:02:38.1]} 14.
Ne5 {[%clk 0:02:44.9]} 14... Nxe5 {[%clk 0:02:31.5]} 15. Bxe5 {[%clk 0:02:40.9]}
15... b4 {[%clk 0:02:18.2]} 16. Rfb1 {[%clk 0:02:23]} 16... b3 {[%clk
0:02:04.5]} 17. Bd1 {[%clk 0:02:22.6]} 17... Nd7 {[%clk 0:02:03.8]} 18. Bf4
{[%clk 0:02:21.9]} 18... f6 {[%clk 0:01:57.5]} 19. Nf3 {[%clk 0:02:13.1]} 19...
a5 {[%clk 0:01:49.4]} 20. Bg3 {[%clk 0:02:12.6]} 20... Bd6 {[%clk 0:01:45.8]}
21. e4 {[%clk 0:02:06.8]} 21... Bxg3 {[%clk 0:01:41.3]} 22. fxg3 {[%clk
0:02:06.4]} 22... dxe4 {[%clk 0:01:34.4]} 23. Nd2 {[%clk 0:02:06]} 23... Bd5
{[%clk 0:01:29.7]} 24. Nxe4 {[%clk 0:02:01.8]} 24... Qc6 {[%clk 0:01:27.6]} 25.
Nd2 {[%clk 0:01:58.2]} 25... e5 {[%clk 0:01:27.8]} 26. dxe5 {[%clk 0:01:57.6]}
26... Nxe5 {[%clk 0:01:27.1]} 27. Qf1 {[%clk 0:01:43]} 27... Rae8 {[%clk
0:01:25.3]} 28. Be2 {[%clk 0:01:41]} 28... f5 {[%clk 0:01:21.5]} 29. Re1 {[%clk
0:01:39.5]} 29... g6 {[%clk 0:00:59.5]} 30. Qf2 {[%clk 0:01:39.1]} 30... Kg7
{[%clk 0:00:48.5]} 31. Nf1 {[%clk 0:01:38.4]} 31... Be4 {[%clk 0:00:42.7]} 32.
Rad1 {[%clk 0:01:36.4]} 32... Bd3 {[%clk 0:00:33.9]} 33. Bf3 {[%clk 0:01:26.9]}
33... Nxf3+ {[%clk 0:00:30.2]} 34. gxf3 {[%clk 0:01:21.8]} 34... f4 {[%clk
0:00:21.7]} 35. g4 {[%clk 0:01:13.8]} 35... Kg8 {[%clk 0:00:18]} 36. Nd2 {[%clk
0:01:06.7]} 36... Rxe1+ {[%clk 0:00:17.2]} 37. Rxe1 {[%clk 0:01:06.3]} 37... Re8
{[%clk 0:00:17.6]} 38. h4 {[%clk 0:00:59]} 38... Rxe1+ {[%clk 0:00:15.5]} 39.
Qxe1 {[%clk 0:00:58]} 39... Qc5+ {[%clk 0:00:15.8]} 40. Kg2 {[%clk 0:00:57]}
40... Qe3 {[%clk 0:00:12.2]} 41. Qf2 {[%clk 0:00:53]} 41... Kf7 {[%clk 0:00:12]}
42. g5 {[%clk 0:00:52.2]} 42... Ke6 {[%clk 0:00:11.3]} 43. Nf1 {[%clk
0:00:42.8]} 43... Bxf1+ {[%clk 0:00:07.7]} 44. Kxf1 {[%clk 0:00:39.7]} 44...
Qc1+ {[%clk 0:00:07.7]} 45. Kg2 {[%clk 0:00:39.7]} 45... Qc2 {[%clk 0:00:07.3]}
46. Kg1 {[%clk 0:00:38.8]} 46... Qxf2+ {[%clk 0:00:06.4]} 47. Kxf2 {[%clk
0:00:38.4]} 47... Ke5 {[%clk 0:00:06.8]} 48. Kg2 {[%clk 0:00:38.1]} 48... Kf5
{[%clk 0:00:07]} 49. Kh3 {[%clk 0:00:38.3]} 49... Ke6 {[%clk 0:00:05.6]} 50. Kg4
{[%clk 0:00:38.3]} 50... Ke5 {[%clk 0:00:05.7]} 51. h5 {[%clk 0:00:37.1]} 51...
gxh5+ {[%clk 0:00:05.6]} 52. Kxh5 {[%clk 0:00:36.9]} 52... Ke6 {[%clk
0:00:04.6]} 53. Kh4 {[%clk 0:00:34.5]} 53... Kf5 {[%clk 0:00:01.7]} 54. Kh5
{[%clk 0:00:34.9]} 54... Ke6 {[%clk 0:00:01.6]} 55. Kh6 {[%clk 0:00:35.2]} 55...
Kf5 {[%clk 0:00:01.2]} 56. Kh5 {[%clk 0:00:32.5]} 56... Ke6 {[%clk 0:00:01.6]}
1/2-1/2

[Event "*** Titled Tuesday Blitz"]
[Site "Chess.com"]
[Date "2021.03.16"]
[Round "11"]
[White "AttilaTurzo"]
[Black "elegant285"]
[Result "1-0"]
[WhiteElo "2548"]
[BlackElo "2412"]
[TimeControl "180+1"]
[EndTime "12:05:23 PDT"]
[Termination "AttilaTurzo won by resignation"]

1. d4 {[%clk 0:02:59.8]} 1... Nf6 {[%clk 0:02:59.8]} 2. Nf3 {[%clk 0:02:59.3]}
2... e6 {[%clk 0:02:59.4]} 3. Bf4 {[%clk 0:02:58.9]} 3... d5 {[%clk 0:02:59.1]}
4. e3 {[%clk 0:02:59]} 4... c5 {[%clk 0:02:59.3]} 5. Nbd2 {[%clk 0:02:56.6]}
5... Bd6 {[%clk 0:02:59.6]} 6. Bg3 {[%clk 0:02:55.9]} 6... Qc7 {[%clk
0:02:59.5]} 7. dxc5 {[%clk 0:02:51.1]} 7... Qxc5 {[%clk 0:02:59.5]} 8. Bd3
{[%clk 0:02:51.5]} 8... Nbd7 {[%clk 0:02:56.5]} 9. O-O {[%clk 0:02:51.4]} 9...
e5 {[%clk 0:02:47.1]} 10. e4 {[%clk 0:02:50.7]} 10... dxe4 {[%clk 0:02:43.9]}
11. Nxe4 {[%clk 0:02:51.6]} 11... Nxe4 {[%clk 0:02:40.1]} 12. Bxe4 {[%clk
0:02:52.5]} 12... O-O {[%clk 0:02:39.5]} 13. Bxh7+ {[%clk 0:02:45]} 13... Kxh7
{[%clk 0:02:34.4]} 14. Ng5+ {[%clk 0:02:45.4]} 14... Kg6 {[%clk 0:02:34.7]} 15.
Ne4 {[%clk 0:02:44.2]} 15... Qd4 {[%clk 0:02:12.5]} 16. Qxd4 {[%clk 0:02:13.9]}
16... exd4 {[%clk 0:02:13.4]} 17. Nxd6 {[%clk 0:02:12.3]} 17... Nc5 {[%clk
0:02:03]} 18. Rad1 {[%clk 0:02:10.5]} 18... Ne6 {[%clk 0:01:50.3]} 19. Be5
{[%clk 0:02:00.6]} 19... Rd8 {[%clk 0:01:43.2]} 20. f4 {[%clk 0:02:00.8]} 20...
f5 {[%clk 0:01:18.5]} 21. g4 {[%clk 0:01:42.1]} 21... Nc5 {[%clk 0:01:04.6]} 22.
Rxd4 {[%clk 0:01:31.4]} 22... Be6 {[%clk 0:00:55.6]} 23. Rfd1 {[%clk 0:01:12.7]}
23... Rh8 {[%clk 0:00:49.8]} 24. Nxf5 {[%clk 0:01:04.9]} 24... Bxf5 {[%clk
0:00:48.1]} 25. Rd6+ {[%clk 0:01:05.1]} 25... Ne6 {[%clk 0:00:37.4]} 26. gxf5+
{[%clk 0:01:00.3]} 26... Kxf5 {[%clk 0:00:38.3]} 27. Rd7 {[%clk 0:01:00.1]}
27... Rac8 {[%clk 0:00:23.4]} 28. c3 {[%clk 0:00:51.4]} 28... Rh6 {[%clk
0:00:23.1]} 29. Rf7+ {[%clk 0:00:47.5]} 29... Kg4 {[%clk 0:00:19.4]} 30. Rd3
{[%clk 0:00:44.7]} 30... Rch8 {[%clk 0:00:09.2]} 31. Rg3+ {[%clk 0:00:43]} 31...
Kh4 {[%clk 0:00:09.7]} 32. Rfxg7 {[%clk 0:00:37.8]} 32... Nxg7 {[%clk
0:00:08.5]} 33. Bf6+ {[%clk 0:00:36.5]} 33... Kh5 {[%clk 0:00:07.3]} 34. Rg5+
{[%clk 0:00:34.3]} 34... Kh4 {[%clk 0:00:07.1]} 35. Bxg7 {[%clk 0:00:23.5]}
35... R6h7 {[%clk 0:00:06.7]} 36. Bxh8 {[%clk 0:00:19.6]} 36... Rxh8 {[%clk
0:00:07.1]} 37. Rg3 {[%clk 0:00:19.2]} 37... Rd8 {[%clk 0:00:06.4]} 38. f5
{[%clk 0:00:18.4]} 38... Rd1+ {[%clk 0:00:06.4]} 39. Kg2 {[%clk 0:00:18.5]}
39... Rd2+ {[%clk 0:00:06.8]} 40. Kf3 {[%clk 0:00:18.5]} 40... Rxh2 {[%clk
0:00:06.6]} 41. f6 {[%clk 0:00:18.6]} 41... Rh1 {[%clk 0:00:06.8]} 42. Kf4
{[%clk 0:00:18.4]} 42... Rf1+ {[%clk 0:00:06.8]} 43. Rf3 {[%clk 0:00:18.8]}
43... Rd1 {[%clk 0:00:05.6]} 44. f7 {[%clk 0:00:18]} 44... Rd8 {[%clk
0:00:06.1]} 45. Ke5 {[%clk 0:00:18.2]} 45... Kg5 {[%clk 0:00:06.1]} 46. f8=Q
{[%clk 0:00:17.8]} 1-0

[Event "*** Titled Tuesday Blitz"]
[Site "Chess.com"]
[Date "2021.03.16"]
[Round "11"]
[White "Abund"]
[Black "Sychev_Klementy"]
[Result "0-1"]
[WhiteElo "2706"]
[BlackElo "2873"]
[TimeControl "180+1"]
[EndTime "12:05:24 PDT"]
[Termination "Sychev_Klementy won by resignation"]

1. e4 {[%clk 0:03:00.9]} 1... e5 {[%clk 0:02:56.2]} 2. Nf3 {[%clk 0:03:00.7]}
2... Nc6 {[%clk 0:02:56]} 3. Bc4 {[%clk 0:03:01]} 3... d6 {[%clk 0:02:53.9]} 4.
O-O {[%clk 0:02:54.6]} 4... f5 {[%clk 0:02:52.7]} 5. d3 {[%clk 0:02:41.4]} 5...
fxe4 {[%clk 0:02:19.8]} 6. dxe4 {[%clk 0:02:39.8]} 6... Bg4 {[%clk 0:02:19.9]}
7. Qd5 {[%clk 0:02:27.7]} 7... Qd7 {[%clk 0:02:14.5]} 8. Ng5 {[%clk 0:02:21.8]}
8... Nf6 {[%clk 0:02:13.6]} 9. Qf7+ {[%clk 0:01:51.2]} 9... Qxf7 {[%clk
0:02:13.4]} 10. Nxf7 {[%clk 0:01:52.1]} 10... Na5 {[%clk 0:02:06.4]} 11. Nxh8
{[%clk 0:01:27.6]} 11... Nxc4 {[%clk 0:02:05.3]} 12. b3 {[%clk 0:01:24]} 12...
Nb6 {[%clk 0:02:01.6]} 13. f4 {[%clk 0:01:24.2]} 13... Nbd7 {[%clk 0:01:52.2]}
14. f5 {[%clk 0:01:09.7]} 14... Be7 {[%clk 0:01:39.6]} 15. Nc3 {[%clk 0:00:53]}
15... d5 {[%clk 0:01:09.5]} 16. exd5 {[%clk 0:00:35.3]} 16... Bc5+ {[%clk
0:01:08.5]} 17. Kh1 {[%clk 0:00:35.4]} 17... Bd4 {[%clk 0:01:08]} 18. Bd2 {[%clk
0:00:33.3]} 18... Ke7 {[%clk 0:00:21]} 19. h3 {[%clk 0:00:33]} 19... Rxh8 {[%clk
0:00:20.5]} 20. hxg4 {[%clk 0:00:31.4]} 20... g5 {[%clk 0:00:21.2]} 21. Rf3
{[%clk 0:00:18.1]} 21... h5 {[%clk 0:00:15.6]} 22. Rh3 {[%clk 0:00:17.5]} 22...
Nxg4 {[%clk 0:00:14.7]} 23. Bxg5+ {[%clk 0:00:16.8]} 23... Kf7 {[%clk
0:00:15.2]} 24. Rf3 {[%clk 0:00:09.1]} 24... e4 {[%clk 0:00:14.6]} 25. Rg3
{[%clk 0:00:07.2]} 25... Be5 {[%clk 0:00:14.5]} 26. Bh4 {[%clk 0:00:04.8]} 26...
e3 {[%clk 0:00:12.2]} 27. Rd1 {[%clk 0:00:02.6]} 27... Bxc3 {[%clk 0:00:10.6]}
28. Rf1 {[%clk 0:00:02.6]} 28... Nf2+ {[%clk 0:00:10.5]} 29. Kg1 {[%clk
0:00:02.3]} 29... Bd4 {[%clk 0:00:10.8]} 30. Rxe3 {[%clk 0:00:01.6]} 30... Bxe3
{[%clk 0:00:10.8]} 31. Bxf2 {[%clk 0:00:02.5]} 31... Bxf2+ {[%clk 0:00:11.2]}
32. Rxf2 {[%clk 0:00:03.4]} 32... Nf6 {[%clk 0:00:11.1]} 33. c4 {[%clk
0:00:03.5]} 33... Re8 {[%clk 0:00:11.8]} 34. Kf1 {[%clk 0:00:03.6]} 34... Ng4
{[%clk 0:00:11.5]} 35. Rf3 {[%clk 0:00:03.9]} 35... Nh2+ {[%clk 0:00:11.4]} 36.
Kf2 {[%clk 0:00:04.4]} 36... Nxf3 {[%clk 0:00:12]} 37. Kxf3 {[%clk 0:00:05.3]}
37... Kf6 {[%clk 0:00:12.6]} 38. Kf4 {[%clk 0:00:05.6]} 38... Re5 {[%clk
0:00:12.9]} 39. g3 {[%clk 0:00:04.9]} 39... Rxf5+ {[%clk 0:00:13]} 40. Ke4
{[%clk 0:00:05.5]} 40... Rf2 {[%clk 0:00:13.3]} 41. c5 {[%clk 0:00:05.3]} 41...
Rc2 {[%clk 0:00:12.9]} 42. c6 {[%clk 0:00:06]} 42... bxc6 {[%clk 0:00:12.9]} 43.
dxc6 {[%clk 0:00:06.4]} 43... Rxa2 {[%clk 0:00:13.4]} 44. Kd5 {[%clk 0:00:06.4]}
44... Rc2 {[%clk 0:00:13.2]} 45. b4 {[%clk 0:00:06.3]} 45... a6 {[%clk
0:00:13.7]} 46. b5 {[%clk 0:00:06.7]} 46... axb5 {[%clk 0:00:13.7]} 0-1

[Event "*** Titled Tuesday Blitz"]
[Site "Chess.com"]
[Date "2021.03.16"]
[Round "11"]
[White "JiiHart"]
[Black "FMJoseHerrera"]
[Result "0-1"]
[WhiteElo "2081"]
[BlackElo "2485"]
[TimeControl "180+1"]
[EndTime "12:05:27 PDT"]
[Termination "FMJoseHerrera won on time"]

1. e4 {[%clk 0:03:00.9]} 1... f6 {[%clk 0:02:59]} 2. d4 {[%clk 0:03:00]} 2... g6
{[%clk 0:02:57.7]} 3. Nf3 {[%clk 0:02:56.8]} 3... Kf7 {[%clk 0:02:57.6]} 4. g4
{[%clk 0:02:52.4]} 4... d5 {[%clk 0:02:54.1]} 5. exd5 {[%clk 0:02:38.9]} 5...
Qxd5 {[%clk 0:02:44.2]} 6. Nc3 {[%clk 0:02:34.2]} 6... Qd8 {[%clk 0:02:35.4]} 7.
Bc4+ {[%clk 0:02:30.2]} 7... Kg7 {[%clk 0:02:30.9]} 8. h3 {[%clk 0:02:16.2]}
8... e6 {[%clk 0:01:58.3]} 9. Be3 {[%clk 0:02:14.2]} 9... c6 {[%clk 0:01:52.4]}
10. Qd2 {[%clk 0:02:12.8]} 10... b5 {[%clk 0:01:52.7]} 11. Bd3 {[%clk
0:02:07.5]} 11... Nd7 {[%clk 0:01:51.6]} 12. O-O-O {[%clk 0:02:05.4]} 12... Nb6
{[%clk 0:01:49.9]} 13. h4 {[%clk 0:02:02.5]} 13... Nd5 {[%clk 0:01:41.6]} 14.
Nxd5 {[%clk 0:01:55]} 14... exd5 {[%clk 0:01:36.8]} 15. Rdg1 {[%clk 0:01:54.8]}
15... Bd6 {[%clk 0:01:23]} 16. h5 {[%clk 0:01:46.1]} 16... g5 {[%clk 0:01:21]}
17. Nxg5 {[%clk 0:01:37.6]} 17... fxg5 {[%clk 0:01:20.3]} 18. Bxg5 {[%clk
0:01:37.7]} 18... Be7 {[%clk 0:01:20.5]} 19. h6+ {[%clk 0:01:35.6]} 19... Kf7
{[%clk 0:01:16.1]} 20. Qf4+ {[%clk 0:01:18.6]} 20... Nf6 {[%clk 0:01:12.6]} 21.
Re1 {[%clk 0:01:11.5]} 21... Qd6 {[%clk 0:01:09.2]} 22. Re5 {[%clk 0:00:58.9]}
22... Rf8 {[%clk 0:00:46.8]} 23. Bxh7 {[%clk 0:00:56.5]} 23... Ke8 {[%clk
0:00:42.1]} 24. Bg6+ {[%clk 0:00:50.6]} 24... Kd8 {[%clk 0:00:42.1]} 25. Rhe1
{[%clk 0:00:19.9]} 25... Nh7 {[%clk 0:00:23.3]} 26. Bxe7+ {[%clk 0:00:19.1]}
26... Qxe7 {[%clk 0:00:22.2]} 27. Rxe7 {[%clk 0:00:19.1]} 27... Rxf4 {[%clk
0:00:22.3]} 28. Bxh7 {[%clk 0:00:19.6]} 28... Rxf2 {[%clk 0:00:19.5]} 29. Bg6
{[%clk 0:00:19.1]} 29... Rh2 {[%clk 0:00:19]} 30. h7 {[%clk 0:00:19.3]} 30...
Bd7 {[%clk 0:00:19.6]} 31. Rg7 {[%clk 0:00:16.7]} 31... Kc7 {[%clk 0:00:19.2]}
32. Ree7 {[%clk 0:00:16.5]} 32... Rd8 {[%clk 0:00:18.6]} 33. Rxd7+ {[%clk
0:00:15.1]} 33... Rxd7 {[%clk 0:00:18.8]} 34. Rxd7+ {[%clk 0:00:15.8]} 34...
Kxd7 {[%clk 0:00:19.7]} 35. g5 {[%clk 0:00:15.8]} 35... Ke6 {[%clk 0:00:19.8]}
36. Bd3 {[%clk 0:00:15.4]} 36... a5 {[%clk 0:00:19.6]} 37. g6 {[%clk 0:00:15.8]}
37... Kf6 {[%clk 0:00:20.2]} 38. a4 {[%clk 0:00:15.1]} 38... b4 {[%clk
0:00:19.6]} 39. Kb1 {[%clk 0:00:14.9]} 39... Kg7 {[%clk 0:00:17]} 40. Ka2 {[%clk
0:00:15.1]} 40... Rh4 {[%clk 0:00:17.9]} 41. c3 {[%clk 0:00:14.4]} 41... Rh3
{[%clk 0:00:18.4]} 42. Ba6 {[%clk 0:00:07.5]} 42... bxc3 {[%clk 0:00:18.3]} 43.
Kb3 {[%clk 0:00:03.6]} 43... cxb2+ {[%clk 0:00:18]} 44. Kxb2 {[%clk 0:00:03.9]}
44... Rh4 {[%clk 0:00:18.5]} 45. Bb7 {[%clk 0:00:04]} 45... Rh3 {[%clk
0:00:19.2]} 46. Bxc6 {[%clk 0:00:04.1]} 46... Rh4 {[%clk 0:00:15.7]} 47. Bxd5
{[%clk 0:00:03.8]} 47... Rxd4 {[%clk 0:00:15.7]} 48. Bc6 {[%clk 0:00:02.5]}
48... Rb4+ {[%clk 0:00:15.7]} 49. Kc3 {[%clk 0:00:01.8]} 49... Rh4 {[%clk
0:00:15.6]} 0-1